fUSD/lending_fUSD_20250911
["ID","MTS","AMOUNT","RATE_DAILY","PERIOD"]
[384953320,1757633489687,-453.86,0.00027945,7]
[384953321,1757633489697,-568.89,0.00027945,7]
[384953323,1757633489707,-593.01,0.00027945,7]
[384953324,1757633489717,-400.0,0.00027945,7]
[384953325,1757633489726,-429.11,0.00027945,7]
[384953326,1757633489736,-400.0,0.00027945,7]
[384953327,1757633489746,-400.0,0.00027945,7]
[384953328,1757633489755,-400.0,0.00027945,7]
[384953329,1757633489766,-611.58,0.00027945,7]
[384953330,1757633489775,-459.393876,0.00027945,7]
[384953331,1757633489785,-400.0,0.00027945,7]
[384953332,1757633489795,-565.02,0.00027945,7]
[384953333,1757633489805,-400.0,0.00027945,7]
[384953334,1757633489815,-400.0,0.00027945,7]
[384953335,1757633489826,-400.0,0.00027945,7]
[384953336,1757633489836,-400.0,0.00027945,7]
[384953337,1757633489846,-400.0,0.00027945,7]
[384953338,1757633489856,-400.0,0.00027945,7]
[384953339,1757633489866,-872.03,0.00027945,7]
[384953340,1757633489876,-808.85,0.00027945,7]
[384953341,1757633489885,-400.0,0.00027945,7]
[384953342,1757633489895,-656.37,0.00027945,7]
[384953343,1757633489904,-400.0,0.00027945,7]
[384953344,1757633489914,-864.75,0.00027945,7]
[384953345,1757633489926,-400.0,0.00027945,7]
[384953346,1757633489936,-400.0,0.00027945,7]
[384953347,1757633489947,-701.7,0.00027945,7]
[384953348,1757633489957,-400.0,0.00027945,7]
[384953349,1757633489967,-501.39,0.00027945,7]
[384953350,1757633489977,-400.0,0.00027945,7]
[384953351,1757633489987,-400.0,0.00027945,7]
[384953352,1757633489997,-400.0,0.00027945,7]
[384953353,1757633490006,-400.0,0.00027945,7]
[384953354,1757633490016,-400.0,0.00027945,7]
[384953355,1757633490026,-960.23,0.00027945,7]
[384953356,1757633490036,-319.33360414,0.00027945,7]
[384953357,1757633490046,-400.0,0.00027945,7]
[384953358,1757633490056,-400.0,0.00027945,7]
[384953359,1757633490066,-188.71809424,0.00027945,7]
[384953360,1757633490076,-437.87,0.00027945,7]
[384953361,1757633490086,-392.55,0.00027945,7]
[384953362,1757633490096,-400.0,0.00027945,7]
[384953363,1757633490105,-400.0,0.00027945,7]
[384953364,1757633490116,-400.0,0.00027945,7]
[384953365,1757633490126,-746.08,0.00027945,7]
[384953366,1757633490136,-553.27,0.00027945,7]
[384953367,1757633490146,-481.31,0.00027945,7]
[384953368,1757633490156,-599.2,0.00027945,7]
[384953369,1757633490165,-923.33,0.00027945,7]
[384953370,1757633490175,-400.0,0.00027945,7]
[384953371,1757633490185,-164.90891458,0.00027945,7]
[384953372,1757633490195,-400.0,0.00027945,7]
[384953373,1757633490205,-400.0,0.00027945,7]
[384953374,1757633490215,-400.0,0.00027945,7]
[384953375,1757633490224,-654.29,0.00027945,7]
[384953376,1757633490234,-400.0,0.00027945,7]
[384953377,1757633490244,-400.0,0.00027945,7]
[384953379,1757633490254,-400.0,0.00027945,7]
[384953380,1757633490264,-400.0,0.00027945,7]
[384953381,1757633490274,-453.16,0.00027945,7]
[384953382,1757633490284,-400.0,0.00027945,7]
[384953383,1757633490295,-400.0,0.00027945,7]
[384953384,1757633490304,-400.0,0.00027945,7]
[384953385,1757633490315,-400.0,0.00027945,7]
[384953386,1757633490325,-400.0,0.00027945,7]
[384953387,1757633490335,-400.0,0.00027945,7]
[384953388,1757633490345,-400.0,0.00027945,7]
[384953389,1757633490355,-400.0,0.00027945,7]
[384953390,1757633490366,-400.0,0.00027945,7]
[384953391,1757633490376,-400.0,0.00027945,7]
[384953392,1757633490386,-400.0,0.00027945,7]
[384953393,1757633490397,-612.01,0.00027945,7]
[384953394,1757633490407,-400.0,0.00027945,7]
[384953395,1757633490418,-400.0,0.00027945,7]
[384953396,1757633490428,-490.48,0.00027945,7]
[384953397,1757633490438,-366.72555914,0.00027945,7]
[384953398,1757633490448,-785.9,0.00027945,7]
[384953399,1757633490458,-400.0,0.00027945,7]
[384953400,1757633490468,-616.16,0.00027945,7]
[384953401,1757633490478,-400.0,0.00027945,7]
[384953402,1757633490488,-400.0,0.00027945,7]
[384953403,1757633490498,-400.0,0.00027945,7]
[384953404,1757633490508,-440.78,0.00027945,7]
[384953405,1757633490519,-400.0,0.00027945,7]
[384953406,1757633490529,-400.0,0.00027945,7]
[384953407,1757633490540,-492.6,0.00027945,7]
[384953408,1757633490550,-400.0,0.00027945,7]
[384953409,1757633490559,-400.0,0.00027945,7]
[384953410,1757633490570,-400.0,0.00027945,7]
[384953411,1757633490580,-775.58,0.00027945,7]
[384953412,1757633490591,-1206.98,0.00027945,7]
[384953413,1757633490601,-439.47,0.00027945,7]
[384953415,1757633490610,-400.0,0.00027945,7]
[384953416,1757633490621,-509.99,0.00027945,7]
[384953417,1757633490631,-400.0,0.00027945,7]
[384953418,1757633490641,-963.12,0.00027945,7]
[384953419,1757633490651,-400.0,0.00027945,7]
[384953420,1757633490661,-403.86204539,0.00027945,7]
[384953421,1757633490671,-300.0,0.00027945,7]
[384953422,1757633490680,-400.0,0.00027945,7]
[384953423,1757633490690,-638.33,0.00027945,7]
[384953424,1757633490700,-400.0,0.00027945,7]
[384953425,1757633490710,-544.4,0.00027945,7]
[384953426,1757633490720,-541.74,0.00027945,7]
[384953427,1757633490730,-400.0,0.00027945,7]
[384953428,1757633490740,-400.0,0.00027945,7]
[384953429,1757633490750,-400.0,0.00027945,7]
[384953430,1757633490760,-400.0,0.00027945,7]
[384953431,1757633490770,-414.70786249,0.00027945,7]
[384953432,1757633490780,-990.01,0.00027945,7]
[384953433,1757633490790,-400.0,0.00027945,7]
[384953434,1757633490800,-400.0,0.00027945,7]
[384953435,1757633490810,-400.0,0.00027945,7]
[384953436,1757633490820,-404.84357337,0.00027945,7]
[384953437,1757633490831,-400.0,0.00027945,7]
[384953438,1757633490841,-686.43,0.00027945,7]
[384953439,1757633490850,-400.0,0.00027945,7]
[384953440,1757633490860,-400.0,0.00027945,7]
[384953441,1757633490870,-400.0,0.00027945,7]
[384953442,1757633490880,-400.0,0.00027945,7]
[384953443,1757633490890,-400.0,0.00027945,7]
[384953444,1757633490900,-400.0,0.00027945,7]
[384953446,1757633490911,-400.0,0.00027945,7]
[384953447,1757633490921,-400.08,0.00027945,7]
[384953448,1757633490935,-400.0,0.00027945,7]
[384953449,1757633490944,-400.0,0.00027945,7]
[384953450,1757633490955,-400.0,0.00027945,7]
[384953451,1757633490964,-613.72,0.00027945,7]
[384953452,1757633490974,-400.0,0.00027945,7]
[384953453,1757633490984,-400.0,0.00027945,7]
[384953454,1757633490994,-724.69,0.00027945,7]
[384953455,1757633491005,-622.13,0.00027945,7]
[384953456,1757633491015,-400.0,0.00027945,7]
[384953457,1757633491026,-1069.41,0.00027945,7]
[384953458,1757633491039,-1059.75,0.00027945,7]
[384953459,1757633491050,-400.0,0.00027945,7]
[384953460,1757633491061,-506.8,0.00027945,7]
[384953462,1757633491306,-400.0,0.00027945,7]
[384953463,1757633491342,-400.0,0.00027945,7]
[384953464,1757633491351,-400.0,0.00027945,7]
[384953465,1757633491360,-1004.03,0.00027945,7]
[384953466,1757633491370,-400.0,0.00027945,7]
[384953467,1757633491379,-400.0,0.00027945,7]
[384953468,1757633491388,-753.26,0.00027945,7]
[384953469,1757633491398,-400.0,0.00027945,7]
[384953470,1757633491406,-400.0,0.00027945,7]
[384953471,1757633491415,-400.0,0.00027945,7]
[384953472,1757633491424,-1145.31,0.00027945,7]
[384953473,1757633491433,-1353.57,0.00027945,7]
[384953474,1757633491442,-400.0,0.00027945,7]
[384953475,1757633491452,-411.17,0.00027945,7]
[384953476,1757633491461,-684.82,0.00027945,7]
[384953477,1757633491470,-400.0,0.00027945,7]
[384953478,1757633491479,-488.85,0.00027945,7]
[384953479,1757633491488,-657.64,0.00027945,7]
[384953480,1757633491497,-430.56474897,0.00027945,7]
[384953481,1757633491507,-400.0,0.00027945,7]
[384953482,1757633491516,-400.0,0.00027945,7]
[384953483,1757633491525,-485.19,0.00027945,7]
[384953484,1757633491535,-400.0,0.00027945,7]
[384953485,1757633491544,-400.0,0.00027945,7]
[384953486,1757633491553,-832.53,0.00027945,7]
[384953488,1757633491562,-400.0,0.00027945,7]
[384953489,1757633491572,-400.0,0.00027945,7]
[384953490,1757633491582,-400.0,0.00027945,7]
[384953491,1757633491591,-806.45,0.00027945,7]
[384953492,1757633491600,-400.0,0.00027945,7]
[384953493,1757633491609,-1109.35,0.00027945,7]
[384953494,1757633491619,-400.0,0.00027945,7]
[384953495,1757633491628,-1282.14,0.00027945,7]
[384953496,1757633491637,-400.0,0.00027945,7]
[384953497,1757633491647,-1045.02,0.00027945,7]
[384953498,1757633491656,-1090.41,0.00027945,7]
[384953499,1757633491666,-400.0,0.00027945,7]
[384953500,1757633491675,-1806.64,0.00027945,7]
[384953501,1757633491685,-750.57,0.00027945,7]
[384953502,1757633491694,-1028.56,0.00027945,7]
[384953503,1757633491703,-1128.76,0.00027945,7]
[384953504,1757633491712,-503.43,0.00027945,7]
[384953505,1757633491722,-1374.45,0.00027945,7]
[384953506,1757633491731,-400.0,0.00027945,7]
[384953507,1757633491740,-452.16,0.00027945,7]
[384953508,1757633491749,-400.0,0.00027945,7]
[384953509,1757633491758,-424.11,0.00027945,7]
[384953510,1757633491767,-632.34,0.00027945,7]
[384953511,1757633491777,-400.0,0.00027945,7]
[384953512,1757633491787,-400.0,0.00027945,7]
[384953513,1757633491796,-400.0,0.00027945,7]
[384953514,1757633491805,-494.59,0.00027945,7]
[384953515,1757633491814,-400.0,0.00027945,7]
[384953516,1757633491824,-400.0,0.00027945,7]
[384953517,1757633491833,-400.0,0.00027945,7]
[384953518,1757633491843,-400.0,0.00027945,7]
[384953520,1757633491852,-1437.02,0.00027945,7]
[384953521,1757633491861,-400.0,0.00027945,7]
[384953522,1757633491871,-400.0,0.00027945,7]
[384953523,1757633491880,-400.0,0.00027945,7]
[384953524,1757633491889,-400.0,0.00027945,7]
[384953525,1757633491899,-400.0,0.00027945,7]
[384953526,1757633491908,-1198.42,0.00027945,7]
[384953527,1757633491918,-565.03,0.00027945,7]
[384953528,1757633491931,-490.08,0.00027945,7]
[384953529,1757633491941,-659.58,0.00027945,7]
[384953530,1757633491950,-1075.82,0.00027945,7]
[384953531,1757633491960,-1181.4,0.00027945,7]
[384953532,1757633491969,-400.0,0.00027945,7]
[384953533,1757633491978,-400.0,0.00027945,7]
[384953534,1757633491988,-400.0,0.00027945,7]
[384953535,1757633491997,-1195.49,0.00027945,7]
[384953536,1757633492006,-400.0,0.00027945,7]
[384953537,1757633492015,-400.0,0.00027945,7]
[384953538,1757633492024,-400.0,0.00027945,7]
[384953539,1757633492034,-1024.21,0.00027945,7]
[384953541,1757633492043,-438.81,0.00027945,7]
[384953542,1757633492052,-410.71,0.00027945,7]
[384953543,1757633492062,-1527.6,0.00027945,7]
[384953544,1757633492071,-400.0,0.00027945,7]
[384953545,1757633492081,-400.0,0.00027945,7]
[384953546,1757633492090,-400.0,0.00027945,7]
[384953547,1757633492099,-485.99,0.00027945,7]
[384953548,1757633492108,-1028.89,0.00027945,7]
[384953549,1757633492118,-1724.24,0.00027945,7]
[384953550,1757633492127,-400.0,0.00027945,7]
[384953551,1757633492136,-432.8,0.00027945,7]
[384953552,1757633492146,-1062.78,0.00027945,7]
[384953554,1757633492155,-400.0,0.00027945,7]
[384953555,1757633492164,-400.0,0.00027945,7]
[384953556,1757633492173,-400.0,0.00027945,7]
[384953557,1757633492183,-400.0,0.00027945,7]
[384953558,1757633492192,-619.4,0.00027945,7]
[384953559,1757633492201,-1272.98,0.00027945,7]
[384953560,1757633492211,-773.47,0.00027945,7]
[384953561,1757633492220,-929.55,0.00027945,7]
[384953562,1757633492229,-779.09,0.00027945,7]
[384953563,1757633492239,-400.0,0.00027945,7]
[384953564,1757633492248,-424.15,0.00027945,7]
[384953565,1757633492258,-1542.93,0.00027945,7]
[384953566,1757633492267,-2796.58,0.00027945,7]
[384953567,1757633492276,-400.0,0.00027945,7]
[384953568,1757633492286,-1477.0,0.00027945,7]
[384953569,1757633492296,-400.0,0.00027945,7]
[384953570,1757633492305,-400.0,0.00027945,7]
[384953571,1757633492314,-1213.31,0.00027945,7]
[384953572,1757633492324,-1699.32,0.00027945,7]
[384953573,1757633492333,-400.0,0.00027945,7]
[384953574,1757633492343,-400.0,0.00027945,7]
[384953575,1757633492352,-678.5,0.00027945,7]
[384953576,1757633492362,-1111.24,0.00027945,7]
[384953577,1757633492371,-1277.28,0.00027945,7]
[384953578,1757633492381,-523.02,0.00027945,7]
[384953579,1757633492390,-400.0,0.00027945,7]
[384953580,1757633492399,-1035.53,0.00027945,7]
[384953581,1757633492409,-1081.61,0.00027945,7]
[384953582,1757633492418,-575.06,0.00027945,7]
[384953583,1757633492428,-1453.23,0.00027945,7]
[384953584,1757633492437,-400.0,0.00027945,7]
[384953585,1757633492446,-543.93,0.00027945,7]
[384953587,1757633492456,-400.0,0.00027945,7]
[384953588,1757633492465,-400.0,0.00027945,7]
[384953589,1757633492474,-400.0,0.00027945,7]
[384953590,1757633492483,-400.0,0.00027945,7]
[384953591,1757633492492,-450.92687671,0.00027945,7]
[384953592,1757633492502,-945.63,0.00027945,7]
[384953593,1757633492511,-1445.03,0.00027945,7]
[384953594,1757633492520,-4294.71,0.00027945,5]
[384953595,1757633492529,-752.34,0.00027945,7]
[384953596,1757633492538,-467.41,0.00027945,7]
[384953597,1757633492548,-400.0,0.00027945,7]
[384953598,1757633492557,-984.14,0.00027945,7]
[384953599,1757633492566,-400.0,0.00027945,7]
[384953600,1757633492575,-400.0,0.00027945,7]
[384953601,1757633492585,-1118.93,0.00027945,7]
[384953602,1757633492593,-400.0,0.00027945,7]
[384953603,1757633492603,-400.0,0.00027945,7]
[384953604,1757633492612,-400.0,0.00027945,7]
[384953605,1757633492621,-467.27,0.00027945,7]
[384953606,1757633492630,-400.0,0.00027945,7]
[384953607,1757633492639,-411.37,0.00027945,7]
[384953608,1757633492649,-779.96,0.00027945,7]
[384953609,1757633492658,-1272.31,0.00027945,7]
[384953610,1757633492667,-400.0,0.00027945,7]
[384953611,1757633492676,-1074.79,0.00027945,7]
[384953612,1757633492685,-400.0,0.00027945,7]
[384953613,1757633492695,-400.0,0.00027945,7]
[384953614,1757633492704,-400.0,0.00027945,7]
[384953615,1757633492713,-400.0,0.00027945,7]
[384953616,1757633492723,-647.42,0.00027945,7]
[384953617,1757633492732,-698.12,0.00027945,7]
[384953619,1757633492742,-1259.47,0.00027945,7]
[384953620,1757633492751,-1361.45,0.00027945,7]
[384953621,1757633492760,-400.0,0.00027945,7]
[384953622,1757633492769,-978.1,0.00027945,7]
[384953623,1757633492779,-1108.2,0.00027945,7]
[384953624,1757633492790,-400.0,0.00027945,7]
[384953625,1757633492799,-968.72,0.00027945,7]
[384953626,1757633492809,-400.0,0.00027945,7]
[384953627,1757633492819,-568.98,0.00027945,7]
[384953628,1757633492829,-400.0,0.00027945,7]
[384953629,1757633492840,-400.0,0.00027945,7]
[384953630,1757633492850,-400.0,0.00027945,7]
[384953631,1757633492859,-455.43,0.00027945,7]
[384953632,1757633492868,-400.0,0.00027945,7]
[384953633,1757633492878,-1514.27,0.00027945,7]
[384953634,1757633492888,-593.91,0.00027945,7]
[384953635,1757633492897,-400.0,0.00027945,7]
[384953636,1757633492906,-1165.07,0.00027945,7]
[384953637,1757633492915,-400.0,0.00027945,7]
[384953638,1757633492925,-368.24172493,0.00027945,7]
[384953639,1757633492934,-400.0,0.00027945,7]
[384953640,1757633492943,-1245.93,0.00027945,7]
[384953641,1757633492952,-400.0,0.00027945,7]
[384953642,1757633492962,-400.0,0.00027945,7]
[384953643,1757633492971,-1080.41,0.00027945,7]
[384953644,1757633492980,-1199.29,0.00027945,7]
[384953645,1757633492989,-443.85,0.00027945,7]
[384953646,1757633492998,-1223.15,0.00027945,7]
[384953647,1757633493007,-1507.47,0.00027945,7]
[384953648,1757633493016,-1390.09,0.00027945,7]
[384953649,1757633493026,-1314.63,0.00027945,7]
[384953651,1757633493035,-400.0,0.00027945,7]
[384953652,1757633493044,-400.0,0.00027945,7]
[384953653,1757633493053,-430.56364434,0.00027945,7]
[384953654,1757633493064,-400.0,0.00027945,7]
[384953655,1757633493073,-429.56,0.00027945,7]
[384953656,1757633493083,-676.11,0.00027945,7]
[384953657,1757633493092,-400.0,0.00027945,7]
[384953658,1757633493101,-933.51,0.00027945,7]
[384953659,1757633493111,-403.06,0.00027945,7]
[384953660,1757633493120,-1035.3,0.00027945,7]
[384953661,1757633493129,-1055.14,0.00027945,7]
[384953662,1757633493138,-400.0,0.00027945,7]
[384953663,1757633493147,-400.0,0.00027945,7]
[384953664,1757633493157,-1072.69,0.00027945,7]
[384953665,1757633493166,-400.0,0.00027945,7]
[384953666,1757633493175,-400.0,0.00027945,7]
[384953667,1757633493185,-400.0,0.00027945,7]
[384953668,1757633493194,-400.0,0.00027945,7]
[384953669,1757633493203,-254.59189118,0.00027945,7]
[384953670,1757633493212,-400.0,0.00027945,7]
[384953671,1757633493222,-400.0,0.00027945,7]
[384953672,1757633493231,-400.0,0.00027945,7]
[384953673,1757633493240,-1354.49,0.00027945,7]
[384953674,1757633493250,-400.0,0.00027945,7]
[384953675,1757633493259,-400.0,0.00027945,7]
[384953676,1757633493269,-400.0,0.00027945,7]
[384953677,1757633493279,-836.58,0.00027945,7]
[384953678,1757633493288,-1103.91,0.00027945,7]
[384953679,1757633493297,-1130.25,0.00027945,7]
[384953680,1757633493307,-400.0,0.00027945,7]
[384953681,1757633493316,-400.0,0.00027945,7]
[384953682,1757633493326,-400.0,0.00027945,7]
[384953684,1757633493335,-1663.99,0.00027945,7]
[384953685,1757633493344,-151.1143609,0.00027945,7]
[384953686,1757633493354,-400.0,0.00027945,7]
[384953687,1757633493363,-400.0,0.00027945,7]
[384953688,1757633493372,-400.0,0.00027945,7]
[384953689,1757633493382,-400.0,0.00027945,7]
[384953690,1757633493391,-540.94,0.00027945,7]
[384953691,1757633493401,-400.0,0.00027945,7]
[384953692,1757633493410,-400.0,0.00027945,7]
[384953693,1757633493419,-569.94,0.00027945,7]
[384953694,1757633493429,-1453.75,0.00027945,7]
[384953695,1757633493438,-1044.97,0.00027945,7]
[384953696,1757633493448,-318.18332604,0.00027945,7]
[384953697,1757633493458,-400.0,0.00027945,7]
[384953698,1757633493467,-400.0,0.00027945,7]
[384953699,1757633493477,-400.0,0.00027945,7]
[384953700,1757633493486,-861.3,0.00027945,7]
[384953701,1757633493496,-400.0,0.00027945,7]
[384953702,1757633493505,-506.39,0.00027945,7]
[384953703,1757633493515,-1016.72,0.00027945,7]
[384953704,1757633493525,-673.34,0.00027945,7]
[384953705,1757633493534,-722.58,0.00027945,7]
[384953706,1757633493544,-400.0,0.00027945,7]
[384953707,1757633493553,-400.0,0.00027945,7]
[384953708,1757633493563,-400.0,0.00027945,7]
[384953709,1757633493678,-755.45,0.00027945,7]
[384953710,1757633493687,-400.0,0.00027945,7]
[384953711,1757633493697,-1392.38,0.00027945,7]
[384953712,1757633493706,-688.74,0.00027945,7]
[384953713,1757633493715,-835.25,0.00027945,7]
[384953714,1757633493725,-1071.53,0.00027945,7]
[384953715,1757633493734,-514.55,0.00027945,7]
[384953716,1757633493744,-400.0,0.00027945,7]
[384953717,1757633493754,-816.22,0.00027945,7]
[384953718,1757633493763,-400.0,0.00027945,7]
[384953719,1757633493773,-932.79,0.00027945,7]
[384953720,1757633493783,-1697.84,0.00027945,7]
[384953721,1757633493793,-1128.02,0.00027945,7]
[384953722,1757633493803,-1395.9,0.00027945,7]
[384953723,1757633493813,-400.0,0.00027945,7]
[384953724,1757633493822,-1126.95,0.00027945,7]
[384953725,1757633493832,-400.0,0.00027945,7]
[384953726,1757633493841,-400.0,0.00027945,7]
[384953727,1757633493851,-400.0,0.00027945,7]
[384953728,1757633493860,-400.0,0.00027945,7]
[384953729,1757633493869,-425.91,0.00027945,7]
[384953730,1757633493879,-962.07,0.00027945,7]
[384953731,1757633493888,-400.0,0.00027945,7]
[384953732,1757633493898,-428.25,0.00027945,7]
[384953733,1757633493908,-400.0,0.00027945,7]
[384953734,1757633493917,-1242.86,0.00027945,7]
[384953735,1757633493929,-1114.81,0.00027945,7]
[384953736,1757633493939,-400.0,0.00027945,7]
[384953737,1757633493949,-1120.66,0.00027945,7]
[384953738,1757633493959,-400.0,0.00027945,7]
[384953739,1757633493968,-1168.38,0.00027945,7]
[384953740,1757633493977,-475.94,0.00027945,7]
[384953741,1757633493986,-566.16,0.00027945,7]
[384953742,1757633493996,-669.71,0.00027945,7]
[384953743,1757633494005,-400.0,0.00027945,7]
[384953744,1757633494014,-400.0,0.00027945,7]
[384953745,1757633494024,-400.0,0.00027945,7]
[384953746,1757633494033,-687.42,0.00027945,7]
[384953747,1757633494042,-400.0,0.00027945,7]
[384953748,1757633494051,-400.0,0.00027945,7]
[384953749,1757633494061,-783.77,0.00027945,7]
[384953750,1757633494070,-1220.98,0.00027945,7]
[384953751,1757633494080,-1304.66,0.00027945,7]
[384953752,1757633494090,-706.87,0.00027945,7]
[384953753,1757633494099,-543.67,0.00027945,7]
[384953754,1757633494108,-400.0,0.00027945,7]
[384953755,1757633494119,-400.0,0.00027945,7]
[384953756,1757633494128,-400.0,0.00027945,7]
[384953757,1757633494138,-400.0,0.00027945,7]
[384953758,1757633494148,-1017.54,0.00027945,7]
[384953759,1757633494158,-400.0,0.00027945,7]
[384953760,1757633494167,-400.0,0.00027945,7]
[384953761,1757633494176,-400.0,0.00027945,7]
[384953762,1757633494186,-1010.45,0.00027945,7]
[384953763,1757633494195,-400.0,0.00027945,7]
[384953764,1757633494204,-411.58,0.00027945,7]
[384953765,1757633494213,-400.0,0.00027945,7]
[384953766,1757633494223,-436.9,0.00027945,7]
[384953767,1757633494232,-400.0,0.00027945,7]
[384953768,1757633494241,-400.0,0.00027945,7]
[384953769,1757633494250,-1182.03,0.00027945,7]
[384953770,1757633494259,-1203.98,0.00027945,7]
[384953771,1757633494268,-400.0,0.00027945,7]
[384953772,1757633494277,-1451.67,0.00027945,7]
[384953773,1757633494286,-978.41,0.00027945,7]
[384953774,1757633494295,-1642.45,0.00027945,7]
[384953775,1757633494304,-400.0,0.00027945,7]
[384953776,1757633494313,-400.0,0.00027945,7]
[384953777,1757633494323,-1921.44,0.00027945,7]
[384953778,1757633494333,-400.0,0.00027945,7]
[384953779,1757633494342,-400.0,0.00027945,7]
[384953780,1757633494351,-400.0,0.00027945,7]
[384953781,1757633494362,-1357.4,0.00027945,7]
[384953782,1757633494372,-1129.64,0.00027945,7]
[384953783,1757633494381,-1403.43,0.00027945,7]
[384953784,1757633494391,-415.39,0.00027945,7]
[384953785,1757633494400,-400.0,0.00027945,7]
[384953786,1757633494409,-400.0,0.00027945,7]
[384953787,1757633494419,-1127.73,0.00027945,7]
[384953788,1757633494428,-400.0,0.00027945,7]
[384953789,1757633494437,-863.75,0.00027945,7]
[384953790,1757633494446,-801.85,0.00027945,7]
[384953791,1757633494455,-400.0,0.00027945,7]
[384953792,1757633494464,-515.73,0.00027945,7]
[384953793,1757633494474,-579.29,0.00027945,7]
[384953794,1757633494483,-951.97,0.00027945,7]
[384953795,1757633494492,-1347.07,0.00027945,7]
[384953796,1757633494502,-1027.64,0.00027945,7]
[384953797,1757633494511,-675.51,0.00027945,7]
[384953798,1757633494519,-218.76407636,0.00027945,7]
[384953799,1757633494528,-475.39,0.00027945,7]
[384953800,1757633494537,-400.0,0.00027945,7]
[384953801,1757633494546,-401.90255813,0.00027945,7]
[384953802,1757633494555,-751.78,0.00027945,7]
[384953803,1757633494565,-1162.24,0.00027945,7]
[384953804,1757633494574,-400.0,0.00027945,7]
[384953805,1757633494583,-400.0,0.00027945,7]
[384953806,1757633494592,-610.88,0.00027945,7]
[384953807,1757633494602,-1829.98,0.00027945,7]
[384953808,1757633494611,-1338.64,0.00027945,7]
[384953809,1757633494621,-400.0,0.00027945,7]
[384953810,1757633494630,-400.0,0.00027945,7]
[384953811,1757633494640,-532.1,0.00027945,7]
[384953812,1757633494651,-400.0,0.00027945,7]
[384953813,1757633494660,-1207.66,0.00027945,7]
[384953814,1757633494670,-400.0,0.00027945,7]
[384953815,1757633494679,-400.0,0.00027945,7]
[384953816,1757633494688,-1509.88,0.00027945,7]
[384953817,1757633494698,-1345.49,0.00027945,7]
[384953818,1757633494707,-400.0,0.00027945,7]
[384953819,1757633494716,-721.91,0.00027945,7]
[384953820,1757633494726,-1071.35,0.00027945,7]
[384953821,1757633494735,-952.16,0.00027945,7]
[384953822,1757633494744,-400.0,0.00027945,7]
[384953823,1757633494753,-795.13,0.00027945,7]
[384953824,1757633494763,-400.0,0.00027945,7]
[384953825,1757633494772,-914.46,0.00027945,7]
[384953826,1757633494782,-1471.32,0.00027945,7]
[384953827,1757633494791,-400.0,0.00027945,7]
[384953828,1757633494803,-752.2,0.00027945,7]
[384953829,1757633494813,-401.61,0.00027945,7]
[384953830,1757633494822,-896.88,0.00027945,7]
[384953831,1757633494833,-400.0,0.00027945,7]
[384953832,1757633494843,-400.0,0.00027945,7]